[Event "*** Titled Tuesday Blitz"]
[Site "Chess.com"]
[Date "2018.01.02"]
[Round "5"]
[White "TastyFrenchFries"]
[Black "LawrenceTrent"]
[Result "0-1"]
[WhiteElo "2324"]
[BlackElo "2393"]
[TimeControl "180+2"]
[EndTime "14:08:03 PST"]
[Termination "LawrenceTrent won by checkmate"]

1. e3 {[%clk 0:03:01.9]} 1... g6 {[%clk 0:02:59.2]} 2. d3 {[%clk 0:03:00.2]}
2... Bg7 {[%clk 0:03:00.2]} 3. Nf3 {[%clk 0:03:00.5]} 3... c5 {[%clk 0:03:01.1]}
4. d4 {[%clk 0:03:00.7]} 4... Nf6 {[%clk 0:03:01.3]} 5. Be2 {[%clk 0:03:00.8]}
5... O-O {[%clk 0:03:02.2]} 6. O-O {[%clk 0:03:00.3]} 6... b6 {[%clk 0:03:03.3]}
7. c3 {[%clk 0:02:57]} 7... Bb7 {[%clk 0:03:04.4]} 8. a4 {[%clk 0:02:55.6]} 8...
d6 {[%clk 0:02:54.1]} 9. a5 {[%clk 0:02:51.9]} 9... Nbd7 {[%clk 0:02:53.8]} 10.
a6 {[%clk 0:02:52.9]} 10... Bc6 {[%clk 0:02:54.7]} 11. c4 {[%clk 0:02:50.4]}
11... Bxf3 {[%clk 0:02:10.4]} 12. Bxf3 {[%clk 0:02:50.4]} 12... Rc8 {[%clk
0:02:12.3]} 13. Na3 {[%clk 0:02:27.3]} 13... Qc7 {[%clk 0:02:10.8]} 14. Nb5
{[%clk 0:02:26.5]} 14... Qb8 {[%clk 0:02:11.9]} 15. Bb7 {[%clk 0:02:26.2]} 15...
Rcd8 {[%clk 0:02:12.8]} 16. d5 {[%clk 0:02:18]} 16... Ne8 {[%clk 0:02:13.1]} 17.
Rb1 {[%clk 0:02:09]} 17... Nc7 {[%clk 0:02:14]} 18. Na3 {[%clk 0:01:59.6]} 18...
e6 {[%clk 0:01:49.4]} 19. e4 {[%clk 0:01:54.9]} 19... exd5 {[%clk 0:01:46]} 20.
exd5 {[%clk 0:01:54.4]} 20... Rde8 {[%clk 0:01:44.4]} 21. Bf4 {[%clk 0:01:45.8]}
21... Ne5 {[%clk 0:01:44.1]} 22. Bd2 {[%clk 0:01:29.6]} 22... Qd8 {[%clk
0:01:40.2]} 23. f4 {[%clk 0:01:30.1]} 23... Nd3 {[%clk 0:01:37.6]} 24. Bc3
{[%clk 0:01:12.7]} 24... Nb4 {[%clk 0:01:29.8]} 25. Bxb4 {[%clk 0:01:08.8]}
25... cxb4 {[%clk 0:01:30.7]} 26. Nc2 {[%clk 0:01:10]} 26... b3 {[%clk
0:01:24.3]} 27. Nd4 {[%clk 0:01:06.4]} 27... Bxd4+ {[%clk 0:01:10.8]} 28. Qxd4
{[%clk 0:01:05.5]} 28... Qe7 {[%clk 0:01:11.4]} 29. Qc3 {[%clk 0:00:21.1]} 29...
Qe3+ {[%clk 0:01:11.5]} 30. Qxe3 {[%clk 0:00:22.3]} 30... Rxe3 {[%clk 0:01:12]}
31. Kf2 {[%clk 0:00:23.9]} 31... Re4 {[%clk 0:01:11.9]} 32. Rbe1 {[%clk
0:00:20.3]} 32... Rfe8 {[%clk 0:01:09.1]} 33. Rxe4 {[%clk 0:00:20.8]} 33... Rxe4
{[%clk 0:01:09.7]} 34. Kf3 {[%clk 0:00:22.7]} 34... Rxc4 {[%clk 0:01:10.5]} 35.
Re1 {[%clk 0:00:24.1]} 35... Kf8 {[%clk 0:01:11.7]} 36. Bc6 {[%clk 0:00:24.5]}
36... Rc5 {[%clk 0:01:10.1]} 37. Rd1 {[%clk 0:00:24.9]} 37... Nxa6 {[%clk
0:01:10.5]} 38. Rd3 {[%clk 0:00:24.8]} 38... Nb4 {[%clk 0:01:11.5]} 39. Rxb3
{[%clk 0:00:25.5]} 39... Nxc6 {[%clk 0:01:12.7]} 40. dxc6 {[%clk 0:00:27.3]}
40... Rxc6 {[%clk 0:01:14.1]} 41. Ra3 {[%clk 0:00:28.5]} 41... a5 {[%clk
0:01:15]} 42. Rd3 {[%clk 0:00:29.8]} 42... Ke7 {[%clk 0:01:15.8]} 43. Ke4 {[%clk
0:00:31.2]} 43... Rc5 {[%clk 0:01:16.5]} 44. Kd4 {[%clk 0:00:31.4]} 44... Kd7
{[%clk 0:01:17.4]} 45. Re3 {[%clk 0:00:32.6]} 45... Rb5 {[%clk 0:01:18.1]} 46.
b3 {[%clk 0:00:34.5]} 46... Rb4+ {[%clk 0:01:18.3]} 47. Kd3 {[%clk 0:00:33.5]}
47... Rxf4 {[%clk 0:01:19.1]} 48. g3 {[%clk 0:00:35.4]} 48... Rf5 {[%clk
0:01:20.1]} 49. h4 {[%clk 0:00:37.3]} 49... h5 {[%clk 0:01:20.5]} 50. Kd4 {[%clk
0:00:35.8]} 50... Rb5 {[%clk 0:01:18.7]} 51. Kc4 {[%clk 0:00:36.2]} 51... Rb4+
{[%clk 0:01:19.9]} 52. Kc3 {[%clk 0:00:37.7]} 52... Rg4 {[%clk 0:01:21.5]} 53.
Rf3 {[%clk 0:00:38.5]} 53... f5 {[%clk 0:01:22]} 54. Kd3 {[%clk 0:00:37.9]}
54... a4 {[%clk 0:01:21.9]} 55. bxa4 {[%clk 0:00:38.4]} 55... Rxa4 {[%clk
0:01:23.8]} 56. Kd2 {[%clk 0:00:37.8]} 56... Ra2+ {[%clk 0:01:24.2]} 57. Kc1
{[%clk 0:00:38.7]} 57... b5 {[%clk 0:01:24.9]} 58. Rb3 {[%clk 0:00:39.6]} 58...
Kc6 {[%clk 0:01:25.7]} 59. Kb1 {[%clk 0:00:41.5]} 59... Rg2 {[%clk 0:01:26.3]}
60. Re3 {[%clk 0:00:42.7]} 60... b4 {[%clk 0:01:26.2]} 61. Kc1 {[%clk 0:00:44]}
61... Kc5 {[%clk 0:01:27.1]} 62. Re6 {[%clk 0:00:44.5]} 62... Rxg3 {[%clk
0:01:26.8]} 63. Re2 {[%clk 0:00:45.2]} 63... Kc4 {[%clk 0:01:27.1]} 64. Rc2+
{[%clk 0:00:46]} 64... Rc3 {[%clk 0:01:27.7]} 65. Kb1 {[%clk 0:00:45.1]} 65...
Rxc2 {[%clk 0:01:20.6]} 66. Ka1 {[%clk 0:00:47]} 66... f4 {[%clk 0:01:19.8]} 67.
Kb1 {[%clk 0:00:48.1]} 67... Rh2 {[%clk 0:01:20.8]} 68. Ka1 {[%clk 0:00:48.9]}
68... f3 {[%clk 0:01:22.2]} 69. Kb1 {[%clk 0:00:49.3]} 69... Re2 {[%clk
0:01:23.3]} 70. Ka1 {[%clk 0:00:50.9]} 70... f2 {[%clk 0:01:24.5]} 71. Kb1
{[%clk 0:00:50.8]} 71... f1=Q# {[%clk 0:01:26.4]} 0-1

[Event "*** Titled Tuesday Blitz"]
[Site "Chess.com"]
[Date "2018.01.02"]
[Round "5"]
[White "Incognito_Knight"]
[Black "SmoothAsAHedgehog"]
[Result "1/2-1/2"]
[WhiteElo "2533"]
[BlackElo "2524"]
[TimeControl "180+2"]
[EndTime "14:08:03 PST"]
[Termination "Game drawn by agreement"]

1. e4 {[%clk 0:02:48.1]} 1... e5 {[%clk 0:02:59.7]} 2. Nf3 {[%clk 0:02:49.1]}
2... Nc6 {[%clk 0:02:59.9]} 3. Bb5 {[%clk 0:02:50.5]} 3... a6 {[%clk 0:03:00.5]}
4. Ba4 {[%clk 0:02:51.5]} 4... Nf6 {[%clk 0:03:01.3]} 5. O-O {[%clk 0:02:53.2]}
5... Be7 {[%clk 0:03:01.7]} 6. Re1 {[%clk 0:02:54.7]} 6... b5 {[%clk 0:03:03]}
7. Bb3 {[%clk 0:02:56.1]} 7... d6 {[%clk 0:03:04.6]} 8. c3 {[%clk 0:02:57.5]}
8... O-O {[%clk 0:03:05.2]} 9. h3 {[%clk 0:02:59]} 9... Nb8 {[%clk 0:03:05.1]}
10. d4 {[%clk 0:03:00.3]} 10... Nbd7 {[%clk 0:03:06.2]} 11. c4 {[%clk
0:03:01.9]} 11... Bb7 {[%clk 0:02:57.1]} 12. Nc3 {[%clk 0:03:03.1]} 12... b4
{[%clk 0:02:45.9]} 13. Nd5 {[%clk 0:03:04.1]} 13... Re8 {[%clk 0:02:35]} 14. Bd2
{[%clk 0:02:20.7]} 14... a5 {[%clk 0:02:32.8]} 15. a3 {[%clk 0:02:21.7]} 15...
exd4 {[%clk 0:02:23.6]} 16. Nxd4 {[%clk 0:02:18.3]} 16... Bf8 {[%clk 0:02:21.7]}
17. axb4 {[%clk 0:02:02.8]} 17... axb4 {[%clk 0:02:22.2]} 18. Rxa8 {[%clk
0:02:02.8]} 18... Bxa8 {[%clk 0:02:24.1]} 19. Bc2 {[%clk 0:01:56.6]} 19... c5
{[%clk 0:02:09.4]} 20. Nf5 {[%clk 0:01:53.4]} 20... Bxd5 {[%clk 0:02:05.7]} 21.
exd5 {[%clk 0:01:51.5]} 21... g6 {[%clk 0:02:00.3]} 22. Nh6+ {[%clk 0:01:45.4]}
22... Kg7 {[%clk 0:02:01.4]} 23. b3 {[%clk 0:01:28.5]} 23... Rxe1+ {[%clk
0:01:58.8]} 24. Qxe1 {[%clk 0:01:28.5]} 24... Qe8 {[%clk 0:02:00.3]} 25. Qxe8
{[%clk 0:01:20.3]} 25... Nxe8 {[%clk 0:02:02.2]} 26. Ng4 {[%clk 0:01:21.1]}
26... h5 {[%clk 0:01:55.6]} 27. Ne3 {[%clk 0:01:20.8]} 27... Kf6 {[%clk
0:01:49.6]} 28. f4 {[%clk 0:01:20]} 28... Bh6 {[%clk 0:01:45.8]} 29. g3 {[%clk
0:01:20.9]} 29... Kg7 {[%clk 0:01:42.4]} 30. Kf2 {[%clk 0:01:18.8]} 30... h4
{[%clk 0:01:42.5]} 31. gxh4 {[%clk 0:01:12.1]} 31... Ndf6 {[%clk 0:01:40.9]} 32.
Kf3 {[%clk 0:01:10.1]} 32... Nh5 {[%clk 0:01:32.9]} 33. Ng4 {[%clk 0:01:10]}
33... f5 {[%clk 0:01:29.9]} 34. Nf2 {[%clk 0:00:53.1]} 34... Kf7 {[%clk
0:01:27.2]} 35. Nh1 {[%clk 0:00:52]} 35... Bf8 {[%clk 0:01:25.3]} 36. Ng3 {[%clk
0:00:51.9]} 36... Neg7 {[%clk 0:01:26.8]} 37. Ne2 {[%clk 0:00:47.9]} 37... Be7
{[%clk 0:01:26.7]} 38. Be1 {[%clk 0:00:49.2]} 38... Bf6 {[%clk 0:01:26.2]} 39.
Bf2 {[%clk 0:00:49.6]} 39... Ke7 {[%clk 0:01:25.4]} 40. Nc1 {[%clk 0:00:49.5]}
40... Kf7 {[%clk 0:01:19.6]} 41. Nd3 {[%clk 0:00:50.3]} 41... Be7 {[%clk
0:01:21.3]} 42. Bd1 {[%clk 0:00:42.7]} 42... Ke8 {[%clk 0:01:10.7]} 43. Ke3
{[%clk 0:00:30.7]} 43... Kf7 {[%clk 0:01:08]} 44. Bf3 {[%clk 0:00:30.3]} 44...
Ne8 {[%clk 0:01:07.3]} 45. Nc1 {[%clk 0:00:22.3]} 45... Nef6 {[%clk 0:01:03.5]}
46. Ne2 {[%clk 0:00:23.2]} 46... Nd7 {[%clk 0:01:04.8]} 47. Ng3 {[%clk
0:00:18.7]} 47... Ndf6 {[%clk 0:00:58.3]} 48. Be1 {[%clk 0:00:17.1]} 48... Nxg3
{[%clk 0:00:57.4]} 49. Bxg3 {[%clk 0:00:18.3]} 49... Nh5 {[%clk 0:00:59]} 50.
Bf2 {[%clk 0:00:17.9]} 50... Bf6 {[%clk 0:00:59.1]} 51. Bxh5 {[%clk 0:00:10.4]}
51... gxh5 {[%clk 0:01:01]} 52. Kf3 {[%clk 0:00:10.9]} 1/2-1/2

[Event "*** Titled Tuesday Blitz"]
[Site "Chess.com"]
[Date "2018.01.02"]
[Round "5"]
[White "manubibi"]
[Black "theblitzchamp"]
[Result "1-0"]
[WhiteElo "2452"]
[BlackElo "2442"]
[TimeControl "180+2"]
[EndTime "14:08:05 PST"]
[Termination "manubibi won by checkmate"]

1. e4 {[%clk 0:03:01.3]} 1... e5 {[%clk 0:02:59.7]} 2. Nf3 {[%clk 0:02:59.6]}
2... Nc6 {[%clk 0:03:00.9]} 3. Bb5 {[%clk 0:02:58.7]} 3... Nge7 {[%clk
0:03:01.8]} 4. O-O {[%clk 0:02:55.9]} 4... g6 {[%clk 0:03:02.5]} 5. c3 {[%clk
0:02:55.9]} 5... Bg7 {[%clk 0:03:03.2]} 6. d4 {[%clk 0:02:56.9]} 6... exd4
{[%clk 0:03:05.1]} 7. cxd4 {[%clk 0:02:57.4]} 7... a6 {[%clk 0:03:06.6]} 8. Ba4
{[%clk 0:02:45.8]} 8... b5 {[%clk 0:03:07.5]} 9. Bb3 {[%clk 0:02:46.4]} 9... O-O
{[%clk 0:03:08.3]} 10. d5 {[%clk 0:02:43.3]} 10... Na5 {[%clk 0:03:09.2]} 11.
Nc3 {[%clk 0:02:42.6]} 11... c5 {[%clk 0:03:01.7]} 12. d6 {[%clk 0:02:34.6]}
12... Nec6 {[%clk 0:03:00]} 13. Bg5 {[%clk 0:02:34.1]} 13... Qb6 {[%clk
0:02:43.4]} 14. Nd5 {[%clk 0:02:33.5]} 14... Qa7 {[%clk 0:02:43.6]} 15. Ne7+
{[%clk 0:02:30.6]} 15... Kh8 {[%clk 0:02:42.3]} 16. Bd5 {[%clk 0:02:20.7]} 16...
Bb7 {[%clk 0:02:38.7]} 17. Qd2 {[%clk 0:02:10.2]} 17... Qb6 {[%clk 0:02:30.2]}
18. Rfe1 {[%clk 0:01:55.5]} 18... f6 {[%clk 0:02:23.1]} 19. Be3 {[%clk
0:01:44.4]} 19... Nxe7 {[%clk 0:02:17.1]} 20. dxe7 {[%clk 0:01:46.3]} 20... Rfe8
{[%clk 0:02:18.1]} 21. b4 {[%clk 0:01:45.4]} 21... Nc4 {[%clk 0:02:01.5]} 22.
Bxc4 {[%clk 0:01:45.2]} 22... bxc4 {[%clk 0:02:02.7]} 23. Bxc5 {[%clk
0:01:46.5]} 23... Qe6 {[%clk 0:02:02.3]} 24. Nd4 {[%clk 0:01:43]} 24... Qf7
{[%clk 0:02:00.8]} 25. Rad1 {[%clk 0:01:41.3]} 25... Rac8 {[%clk 0:02:01]} 26.
f4 {[%clk 0:01:37.1]} 26... a5 {[%clk 0:01:58.7]} 27. a3 {[%clk 0:01:36.4]}
27... axb4 {[%clk 0:01:58.1]} 28. axb4 {[%clk 0:01:38.3]} 28... Rxc5 {[%clk
0:01:45.5]} 29. bxc5 {[%clk 0:01:37.9]} 29... Qxe7 {[%clk 0:01:47]} 30. Qb4
{[%clk 0:01:27.9]} 30... Bxe4 {[%clk 0:01:46]} 31. Qxc4 {[%clk 0:01:27.6]} 31...
f5 {[%clk 0:01:47.4]} 32. Nb5 {[%clk 0:01:12.4]} 32... Qh4 {[%clk 0:01:07.2]}
33. Nd6 {[%clk 0:01:10.9]} 33... Rf8 {[%clk 0:00:44.1]} 34. g3 {[%clk
0:00:56.9]} 34... Qg4 {[%clk 0:00:36.4]} 35. Nxe4 {[%clk 0:00:56.9]} 35... fxe4
{[%clk 0:00:37.5]} 36. Qxe4 {[%clk 0:00:58.1]} 36... h6 {[%clk 0:00:31.5]} 37.
Rd6 {[%clk 0:00:51.3]} 37... Kh7 {[%clk 0:00:30.4]} 38. Kg2 {[%clk 0:00:49.1]}
38... Rf7 {[%clk 0:00:29.6]} 39. h3 {[%clk 0:00:48.4]} 39... Qh5 {[%clk
0:00:30.4]} 40. Rd5 {[%clk 0:00:45.8]} 40... Rf5 {[%clk 0:00:27]} 41. g4 {[%clk
0:00:40]} 41... Rg5 {[%clk 0:00:05.8]} 42. fxg5 {[%clk 0:00:38.7]} 42... Qh4
{[%clk 0:00:07.1]} 43. gxh6 {[%clk 0:00:24.3]} 43... Kxh6 {[%clk 0:00:06.3]} 44.
g5+ {[%clk 0:00:21.7]} 44... Kh5 {[%clk 0:00:07.4]} 45. Qf3+ {[%clk 0:00:21.9]}
45... Qg4+ {[%clk 0:00:07.8]} 46. Qxg4# {[%clk 0:00:21.3]} 1-0

[Event "*** Titled Tuesday Blitz"]
[Site "Chess.com"]
[Date "2018.01.02"]
[Round "5"]
[White "Slmctk"]
[Black "alpasya2009"]
[Result "1-0"]
[WhiteElo "2318"]
[BlackElo "2302"]
[TimeControl "180+2"]
[EndTime "14:08:07 PST"]
[Termination "Slmctk won by resignation"]

1. d4 {[%clk 0:03:01.9]} 1... Nf6 {[%clk 0:03:00.2]} 2. Nf3 {[%clk 0:03:01.1]}
2... g6 {[%clk 0:03:01.4]} 3. Bg5 {[%clk 0:02:59.9]} 3... Bg7 {[%clk 0:03:01.9]}
4. Nbd2 {[%clk 0:02:58.7]} 4... d5 {[%clk 0:03:00.6]} 5. c3 {[%clk 0:02:58.8]}
5... O-O {[%clk 0:03:00.7]} 6. Bxf6 {[%clk 0:02:59]} 6... Bxf6 {[%clk
0:03:01.4]} 7. e4 {[%clk 0:02:59]} 7... dxe4 {[%clk 0:03:00.3]} 8. Nxe4 {[%clk
0:03:00.9]} 8... Bg7 {[%clk 0:03:01.8]} 9. Bc4 {[%clk 0:03:01.4]} 9... Nd7
{[%clk 0:02:43.3]} 10. Qe2 {[%clk 0:02:59.7]} 10... Nf6 {[%clk 0:02:41.5]} 11.
Nxf6+ {[%clk 0:02:54.2]} 11... Bxf6 {[%clk 0:02:34.2]} 12. O-O-O {[%clk
0:02:56.1]} 12... c5 {[%clk 0:02:04.3]} 13. dxc5 {[%clk 0:02:45.8]} 13... Qa5
{[%clk 0:02:01.6]} 14. h4 {[%clk 0:02:35.5]} 14... h5 {[%clk 0:01:51.7]} 15. Qe3
{[%clk 0:02:22.2]} 15... Kg7 {[%clk 0:01:41]} 16. Ne5 {[%clk 0:02:14.7]} 16...
b5 {[%clk 0:01:07.8]} 17. Bd5 {[%clk 0:02:12]} 17... Rb8 {[%clk 0:00:52.3]} 18.
Nc6 {[%clk 0:02:11.6]} 18... Qc7 {[%clk 0:00:52.7]} 19. Nxb8 {[%clk 0:02:10.5]}
19... Qxb8 {[%clk 0:00:54.6]} 20. Kb1 {[%clk 0:02:04.1]} 20... b4 {[%clk
0:00:47.8]} 21. c4 {[%clk 0:02:03.9]} 21... Bf5+ {[%clk 0:00:32.1]} 22. Ka1
{[%clk 0:01:56.4]} 22... a5 {[%clk 0:00:31]} 23. Rd2 {[%clk 0:01:53.2]} 23... a4
{[%clk 0:00:31.6]} 24. Be4 {[%clk 0:01:47.3]} 24... Be6 {[%clk 0:00:26.7]} 25.
Bd5 {[%clk 0:01:44.1]} 25... Bf5 {[%clk 0:00:27.6]} 26. Be4 {[%clk 0:01:45.1]}
26... Be6 {[%clk 0:00:28.5]} 27. Bd5 {[%clk 0:01:35]} 27... Bf5 {[%clk
0:00:29.3]} 28. f3 {[%clk 0:01:24.2]} 28... a3 {[%clk 0:00:29.2]} 29. Be4 {[%clk
0:01:25.5]} 29... axb2+ {[%clk 0:00:28]} 30. Kb1 {[%clk 0:01:26.9]} 30... Be6
{[%clk 0:00:27.3]} 31. Rc2 {[%clk 0:01:21]} 31... Qa7 {[%clk 0:00:25]} 32. Qb3
{[%clk 0:01:17.9]} 32... Qxc5 {[%clk 0:00:25.3]} 33. Rd1 {[%clk 0:01:15.4]}
33... Bc3 {[%clk 0:00:20.8]} 34. Rxc3 {[%clk 0:01:11.6]} 34... bxc3 {[%clk
0:00:21.4]} 35. Qxc3+ {[%clk 0:01:13.5]} 35... f6 {[%clk 0:00:21.9]} 36. Bd5
{[%clk 0:01:06.4]} 36... Bf5+ {[%clk 0:00:21.3]} 37. Kxb2 {[%clk 0:01:05.9]}
37... Rb8+ {[%clk 0:00:22.4]} 38. Ka1 {[%clk 0:01:07.1]} 38... Qb6 {[%clk
0:00:22.4]} 39. Be4 {[%clk 0:01:01.6]} 39... Bxe4 {[%clk 0:00:21.5]} 40. fxe4
{[%clk 0:01:02.5]} 40... e5 {[%clk 0:00:21.4]} 41. c5 {[%clk 0:01:02.3]} 41...
Qb5 {[%clk 0:00:21.4]} 42. c6 {[%clk 0:00:59.6]} 42... Rc8 {[%clk 0:00:19.9]}
43. c7 {[%clk 0:00:58.4]} 43... Kh6 {[%clk 0:00:14.9]} 44. Qd2+ {[%clk
0:00:53.2]} 44... g5 {[%clk 0:00:14.6]} 45. hxg5+ {[%clk 0:00:54]} 45... Kg6
{[%clk 0:00:14.2]} 46. gxf6 {[%clk 0:00:50.4]} 46... Rxc7 {[%clk 0:00:14.4]} 47.
Qd8 {[%clk 0:00:44.9]} 47... Qc5 {[%clk 0:00:10.6]} 48. Qg8+ {[%clk 0:00:44.6]}
48... Kxf6 {[%clk 0:00:11.8]} 49. Rf1+ {[%clk 0:00:43.3]} 49... Ke7 {[%clk
0:00:13.1]} 50. Rf7+ {[%clk 0:00:43.9]} 1-0

[Event "*** Titled Tuesday Blitz"]
[Site "Chess.com"]
[Date "2018.01.02"]
[Round "5"]
[White "gmmoranda"]
[Black "GGuseinov"]
[Result "0-1"]
[WhiteElo "2727"]
[BlackElo "2689"]
[TimeControl "180+2"]
[EndTime "14:08:14 PST"]
[Termination "GGuseinov won by resignation"]

1. d4 {[%clk 0:03:01.9]} 1... Nf6 {[%clk 0:03:00]} 2. c4 {[%clk 0:03:03]} 2...
g6 {[%clk 0:03:01]} 3. Nc3 {[%clk 0:03:04.1]} 3... Bg7 {[%clk 0:03:02.1]} 4. e4
{[%clk 0:03:04.8]} 4... d6 {[%clk 0:03:03.3]} 5. f4 {[%clk 0:03:06]} 5... O-O
{[%clk 0:03:03.8]} 6. Nf3 {[%clk 0:03:07.3]} 6... e5 {[%clk 0:03:04.8]} 7. fxe5
{[%clk 0:03:08]} 7... dxe5 {[%clk 0:03:05.3]} 8. d5 {[%clk 0:03:09.4]} 8... Na6
{[%clk 0:03:06.4]} 9. Bd3 {[%clk 0:03:10.5]} 9... c6 {[%clk 0:03:05.6]} 10. O-O
{[%clk 0:03:11.2]} 10... cxd5 {[%clk 0:03:02.4]} 11. cxd5 {[%clk 0:03:12]} 11...
Qd6 {[%clk 0:02:57.6]} 12. Kh1 {[%clk 0:03:09.4]} 12... Bg4 {[%clk 0:02:50.1]}
13. h3 {[%clk 0:03:05.1]} 13... Bd7 {[%clk 0:02:44.2]} 14. Be3 {[%clk 0:03:03]}
14... Nh5 {[%clk 0:02:38.1]} 15. Kh2 {[%clk 0:03:01.4]} 15... f5 {[%clk
0:02:33.2]} 16. Nd2 {[%clk 0:02:55.9]} 16... f4 {[%clk 0:02:22.9]} 17. Bf2
{[%clk 0:02:43.3]} 17... Kh8 {[%clk 0:02:08.7]} 18. Nc4 {[%clk 0:02:42.5]} 18...
Qe7 {[%clk 0:02:03.9]} 19. Qb3 {[%clk 0:02:23.1]} 19... Nc5 {[%clk 0:01:53.2]}
20. d6 {[%clk 0:02:17.8]} 20... Qg5 {[%clk 0:01:38.9]} 21. Bxc5 {[%clk 0:02:09]}
21... Qg3+ {[%clk 0:01:33.4]} 22. Kh1 {[%clk 0:01:44.1]} 22... Bxh3 {[%clk
0:01:29.9]} 23. Qc2 {[%clk 0:01:42.8]} 23... Be6 {[%clk 0:01:23.8]} 24. Bf2
{[%clk 0:01:10]} 24... Qg5 {[%clk 0:01:17.7]} 25. Nd5 {[%clk 0:00:55.3]} 25...
Ng3+ {[%clk 0:01:11.7]} 26. Kg1 {[%clk 0:00:34.5]} 26... Qh4 {[%clk 0:01:08.2]}
27. Bc5 {[%clk 0:00:34.2]} 27... Qh1+ {[%clk 0:00:52.8]} 28. Kf2 {[%clk
0:00:35.3]} 28... Qh4 {[%clk 0:00:54.7]} 29. Kg1 {[%clk 0:00:29.7]} 29... Rac8
{[%clk 0:00:49]} 30. b4 {[%clk 0:00:30.1]} 30... Qh1+ {[%clk 0:00:39.5]} 31. Kf2
{[%clk 0:00:31.1]} 31... Qh4 {[%clk 0:00:41.4]} 32. Kg1 {[%clk 0:00:31.5]} 32...
b6 {[%clk 0:00:41.6]} 33. d7 {[%clk 0:00:32.4]} 33... bxc5 {[%clk 0:00:37.6]}
34. dxc8=Q {[%clk 0:00:32.4]} 34... Rxc8 {[%clk 0:00:38.2]} 35. Nd6 {[%clk
0:00:30.3]} 35... Rd8 {[%clk 0:00:35.4]} 36. Nb7 {[%clk 0:00:27.2]} 36... Rxd5
{[%clk 0:00:28.2]} 37. Nxc5 {[%clk 0:00:25.9]} 37... Bg4 {[%clk 0:00:22.9]} 38.
Rac1 {[%clk 0:00:14.9]} 38... Qh1+ {[%clk 0:00:16.6]} 39. Kf2 {[%clk 0:00:15.9]}
39... Qh4 {[%clk 0:00:18.5]} 40. Kg1 {[%clk 0:00:17.1]} 40... Rd8 {[%clk
0:00:19.2]} 41. b5 {[%clk 0:00:17.9]} 41... Qh1+ {[%clk 0:00:17.1]} 42. Kf2
{[%clk 0:00:19]} 42... Qh4 {[%clk 0:00:19]} 43. Kg1 {[%clk 0:00:20.5]} 43... Bf6
{[%clk 0:00:20.1]} 44. Bc4 {[%clk 0:00:19.8]} 44... Qh1+ {[%clk 0:00:18.7]} 45.
Kf2 {[%clk 0:00:20.9]} 45... Qh4 {[%clk 0:00:19.6]} 46. Kg1 {[%clk 0:00:22.4]}
46... Qh1+ {[%clk 0:00:18.4]} 47. Kf2 {[%clk 0:00:23.2]} 47... Nxf1 {[%clk
0:00:18.7]} 48. Rxf1 {[%clk 0:00:23.7]} 48... Bh4+ {[%clk 0:00:19.5]} 0-1

[Event "*** Titled Tuesday Blitz"]
[Site "Chess.com"]
[Date "2018.01.02"]
[Round "5"]
[White "DanielNaroditsky"]
[Black "NewBornNow"]
[Result "0-1"]
[WhiteElo "2804"]
[BlackElo "2690"]
[TimeControl "180+2"]
[EndTime "14:08:20 PST"]
[Termination "NewBornNow won by resignation"]

1. e4 {[%clk 0:03:01.9]} 1... c6 {[%clk 0:03:00.5]} 2. f4 {[%clk 0:03:00.5]}
2... d5 {[%clk 0:03:00.6]} 3. e5 {[%clk 0:03:02]} 3... Nh6 {[%clk 0:02:56.3]} 4.
Nf3 {[%clk 0:03:02.5]} 4... Bg4 {[%clk 0:02:52.7]} 5. Be2 {[%clk 0:03:04]} 5...
e6 {[%clk 0:02:53.3]} 6. d4 {[%clk 0:03:00.6]} 6... c5 {[%clk 0:02:54.2]} 7. c3
{[%clk 0:03:00.7]} 7... Nc6 {[%clk 0:02:54.8]} 8. dxc5 {[%clk 0:02:22.1]} 8...
Bxc5 {[%clk 0:02:53.5]} 9. b4 {[%clk 0:02:23.3]} 9... Bb6 {[%clk 0:02:50.7]} 10.
a4 {[%clk 0:02:24.9]} 10... a6 {[%clk 0:02:45]} 11. Nbd2 {[%clk 0:02:24]} 11...
Nf5 {[%clk 0:02:39.2]} 12. Nb3 {[%clk 0:02:25]} 12... O-O {[%clk 0:02:30.4]} 13.
Qd3 {[%clk 0:02:02.9]} 13... f6 {[%clk 0:02:26.8]} 14. exf6 {[%clk 0:02:01.9]}
14... Qxf6 {[%clk 0:02:27]} 15. Bd2 {[%clk 0:02:03.5]} 15... Nd6 {[%clk
0:02:17.5]} 16. Nc5 {[%clk 0:01:26.6]} 16... Bf5 {[%clk 0:02:01.7]} 17. Qe3
{[%clk 0:01:23.8]} 17... Ne4 {[%clk 0:02:02]} 18. Nxe4 {[%clk 0:01:19.7]} 18...
dxe4 {[%clk 0:01:57.8]} 19. Qxb6 {[%clk 0:01:21]} 19... exf3 {[%clk 0:01:54.3]}
20. Bxf3 {[%clk 0:01:22.9]} 20... Rad8 {[%clk 0:01:34.2]} 21. Bxc6 {[%clk
0:01:00.1]} 21... bxc6 {[%clk 0:01:27.6]} 22. Qf2 {[%clk 0:00:59.2]} 22... Bd3
{[%clk 0:01:25.1]} 23. a5 {[%clk 0:00:44.4]} 23... e5 {[%clk 0:01:22.6]} 24. f5
{[%clk 0:00:40]} 24... e4 {[%clk 0:01:16.3]} 25. O-O-O {[%clk 0:00:39.3]} 25...
c5 {[%clk 0:01:06]} 26. Qxc5 {[%clk 0:00:36.9]} 26... Kh8 {[%clk 0:00:54.7]} 27.
Kb2 {[%clk 0:00:38.2]} 27... Rc8 {[%clk 0:00:49]} 28. Qd5 {[%clk 0:00:24.2]}
28... Rb8 {[%clk 0:00:41.8]} 29. Ka3 {[%clk 0:00:21.3]} 29... Rfe8 {[%clk
0:00:34]} 30. Rhe1 {[%clk 0:00:21.1]} 30... Re5 {[%clk 0:00:32.9]} 31. Qd4
{[%clk 0:00:19]} 31... Qxf5 {[%clk 0:00:32.6]} 32. Ra1 {[%clk 0:00:17.3]} 32...
Rd5 {[%clk 0:00:23.4]} 33. Qe3 {[%clk 0:00:17.6]} 33... Rxa5+ {[%clk 0:00:21]}
34. Kb2 {[%clk 0:00:18.1]} 34... Rd5 {[%clk 0:00:19.6]} 35. Qf4 {[%clk
0:00:15.1]} 35... Qc8 {[%clk 0:00:19.2]} 36. Rec1 {[%clk 0:00:11.3]} 36... a5
{[%clk 0:00:19.6]} 37. c4 {[%clk 0:00:10.7]} 37... Rf5 {[%clk 0:00:20.1]} 38.
Qd6 {[%clk 0:00:10]} 38... axb4 {[%clk 0:00:20.9]} 39. Ra7 {[%clk 0:00:08.1]}
39... Rf2 {[%clk 0:00:20.2]} 40. Rc2 {[%clk 0:00:06.7]} 40... b3 {[%clk
0:00:19.3]} 41. Qd5 {[%clk 0:00:02.2]} 41... bxc2+ {[%clk 0:00:19.9]} 42. Kc3
{[%clk 0:00:03.9]} 42... c1=Q+ {[%clk 0:00:18.4]} 43. Bxc1 {[%clk 0:00:05.1]}
43... Rc2+ {[%clk 0:00:19.2]} 44. Kd4 {[%clk 0:00:07]} 44... Rxc4+ {[%clk
0:00:20]} 45. Ke3 {[%clk 0:00:08.2]} 45... Rxc1 {[%clk 0:00:20.6]} 46. Qf7
{[%clk 0:00:07.9]} 46... Qc5+ {[%clk 0:00:19.3]} 0-1